[Event "*** Titled Tuesday Blitz"]
[Site "Chess.com"]
[Date "2018.05.01"]
[Round "6"]
[White "DenksportAcademie"]
[Black "Abdodi"]
[Result "1-0"]
[WhiteElo "2234"]
[BlackElo "2013"]
[TimeControl "180+2"]
[EndTime "14:22:25 PDT"]
[Termination "DenksportAcademie won by resignation"]

1. b3 {[%clk 0:03:01.9]} 1... a5 {[%clk 0:02:53.3]} 2. e4 {[%clk 0:02:57.6]}
2... a4 {[%clk 0:02:47.6]} 3. Nf3 {[%clk 0:02:55.1]} 3... Nc6 {[%clk 0:02:44]}
4. d4 {[%clk 0:02:54.9]} 4... d6 {[%clk 0:02:41.7]} 5. Bb2 {[%clk 0:02:52.8]}
5... Bg4 {[%clk 0:02:40]} 6. Bc4 {[%clk 0:02:47.5]} 6... e6 {[%clk 0:02:35.4]}
7. O-O {[%clk 0:02:41.6]} 7... Nf6 {[%clk 0:02:32.9]} 8. h3 {[%clk 0:02:33.1]}
8... Bxf3 {[%clk 0:02:31.7]} 9. Qxf3 {[%clk 0:02:33.2]} 9... Be7 {[%clk
0:02:31.2]} 10. e5 {[%clk 0:02:22.7]} 10... dxe5 {[%clk 0:02:27.1]} 11. dxe5
{[%clk 0:02:23.1]} 11... Nd7 {[%clk 0:02:23.1]} 12. Re1 {[%clk 0:02:16.3]} 12...
O-O {[%clk 0:02:20.8]} 13. Bd3 {[%clk 0:02:14.1]} 13... f5 {[%clk 0:02:08.2]}
14. exf6 {[%clk 0:01:55.5]} 14... Bxf6 {[%clk 0:02:07.4]} 15. Bxf6 {[%clk
0:01:53.5]} 15... Qxf6 {[%clk 0:02:04.5]} 16. Qxf6 {[%clk 0:01:49.8]} 16... Rxf6
{[%clk 0:02:03.8]} 17. Nc3 {[%clk 0:01:50.1]} 17... axb3 {[%clk 0:02:03]} 18.
axb3 {[%clk 0:01:49.3]} 18... Rxa1 {[%clk 0:02:03]} 19. Rxa1 {[%clk 0:01:49.4]}
19... Nc5 {[%clk 0:02:01.4]} 20. Bc4 {[%clk 0:01:44.2]} 20... Nb4 {[%clk
0:01:56.8]} 21. Nb5 {[%clk 0:01:28]} 21... Nxc2 {[%clk 0:01:50.3]} 22. Ra8+
{[%clk 0:01:19.6]} 22... Kf7 {[%clk 0:01:48.8]} 23. Nxc7 {[%clk 0:01:20.3]}
23... Nd4 {[%clk 0:01:35.4]} 24. Rd8 {[%clk 0:01:06.7]} 24... Ndxb3 {[%clk
0:01:32.8]} 25. Nxe6 {[%clk 0:01:00.6]} 25... Nxe6 {[%clk 0:01:29.9]} 26. Bxb3
{[%clk 0:00:59.8]} 26... Ke7 {[%clk 0:01:30.4]} 27. Rb8 {[%clk 0:00:57.6]} 27...
Nc5 {[%clk 0:01:24.2]} 28. Bd5 {[%clk 0:00:57.8]} 28... Rb6 {[%clk 0:01:15.8]}
29. g4 {[%clk 0:00:57.1]} 29... Kd6 {[%clk 0:01:13.5]} 30. Bf3 {[%clk
0:00:57.1]} 30... Rb1+ {[%clk 0:01:11.4]} 31. Kg2 {[%clk 0:00:56.6]} 31... b5
{[%clk 0:01:12.4]} 32. Rg8 {[%clk 0:00:47]} 32... Ne6 {[%clk 0:01:10.5]} 33. Be4
{[%clk 0:00:48]} 33... Rc1 {[%clk 0:01:03]} 34. Bxh7 {[%clk 0:00:35.9]} 34...
Rc7 {[%clk 0:00:57.3]} 35. Rb8 {[%clk 0:00:34.3]} 35... Kc5 {[%clk 0:00:54.3]}
36. Bf5 {[%clk 0:00:35.1]} 36... Nd4 {[%clk 0:00:52]} 37. Bd3 {[%clk 0:00:30.3]}
37... b4 {[%clk 0:00:49.6]} 38. h4 {[%clk 0:00:31.2]} 38... b3 {[%clk
0:00:50.2]} 39. h5 {[%clk 0:00:31.9]} 39... Rf7 {[%clk 0:00:31.9]} 40. g5 {[%clk
0:00:28.5]} 40... Rd7 {[%clk 0:00:19.4]} 41. h6 {[%clk 0:00:26.2]} 41... gxh6
{[%clk 0:00:19.5]} 42. gxh6 {[%clk 0:00:27.1]} 42... Ne6 {[%clk 0:00:10.7]} 43.
h7 {[%clk 0:00:26.7]} 43... Rxd3 {[%clk 0:00:11.2]} 44. h8=Q {[%clk 0:00:26.5]}
44... Nd4 {[%clk 0:00:12]} 45. Qc8+ {[%clk 0:00:23.6]} 45... Kd5 {[%clk
0:00:11.3]} 46. Qd7+ {[%clk 0:00:22.4]} 46... Ke4 {[%clk 0:00:11.6]} 47. Re8+
{[%clk 0:00:20.9]} 47... Kf4 {[%clk 0:00:09.7]} 48. Qd6+ {[%clk 0:00:21.3]}
48... Kf5 {[%clk 0:00:09.1]} 49. Rf8+ {[%clk 0:00:21.1]} 49... Kg5 {[%clk
0:00:08.9]} 50. Qe7+ {[%clk 0:00:20.6]} 50... Kg4 {[%clk 0:00:08.4]} 51. Qg7+
{[%clk 0:00:20.9]} 1-0

[Event "*** Titled Tuesday Blitz"]
[Site "Chess.com"]
[Date "2018.05.01"]
[Round "6"]
[White "MFBerna"]
[Black "PrinceCharming92"]
[Result "0-1"]
[WhiteElo "2289"]
[BlackElo "2438"]
[TimeControl "180+2"]
[EndTime "14:22:32 PDT"]
[Termination "PrinceCharming92 won by resignation"]

1. e4 {[%clk 0:03:00.4]} 1... d5 {[%clk 0:03:00.3]} 2. exd5 {[%clk 0:02:59.6]}
2... Qxd5 {[%clk 0:03:02.2]} 3. Nc3 {[%clk 0:02:58.8]} 3... Qd6 {[%clk
0:03:01.8]} 4. d4 {[%clk 0:02:59.4]} 4... Nf6 {[%clk 0:03:02.3]} 5. Nf3 {[%clk
0:03:00]} 5... c6 {[%clk 0:03:02.8]} 6. Ne5 {[%clk 0:02:57.4]} 6... Nbd7 {[%clk
0:03:03.3]} 7. Bf4 {[%clk 0:02:57.5]} 7... Nd5 {[%clk 0:03:03.6]} 8. Nxd5 {[%clk
0:02:46.4]} 8... Qxd5 {[%clk 0:03:05.5]} 9. Qd3 {[%clk 0:02:18.9]} 9... Nxe5
{[%clk 0:03:04.6]} 10. dxe5 {[%clk 0:02:18]} 10... Be6 {[%clk 0:03:00.8]} 11.
Qxd5 {[%clk 0:02:14.7]} 11... Bxd5 {[%clk 0:03:02.7]} 12. O-O-O {[%clk
0:02:05.6]} 12... O-O-O {[%clk 0:02:55.4]} 13. c4 {[%clk 0:01:57.8]} 13... Be4
{[%clk 0:02:52.8]} 14. Rxd8+ {[%clk 0:01:52.2]} 14... Kxd8 {[%clk 0:02:54.7]}
15. f3 {[%clk 0:01:45.8]} 15... Bg6 {[%clk 0:02:53.5]} 16. e6 {[%clk 0:01:45.7]}
16... fxe6 {[%clk 0:02:49.5]} 17. Be2 {[%clk 0:01:46.3]} 17... h5 {[%clk
0:02:30.8]} 18. Rd1+ {[%clk 0:01:46]} 18... Ke8 {[%clk 0:02:28.4]} 19. Bc7
{[%clk 0:01:45.8]} 19... h4 {[%clk 0:02:26.3]} 20. Rd8+ {[%clk 0:01:44.6]} 20...
Kf7 {[%clk 0:02:27.2]} 21. Rb8 {[%clk 0:01:44.3]} 21... b6 {[%clk 0:02:19.2]}
22. Rb7 {[%clk 0:01:44]} 22... Rh5 {[%clk 0:02:05.5]} 23. Rxa7 {[%clk
0:01:40.4]} 23... b5 {[%clk 0:02:02.3]} 24. cxb5 {[%clk 0:01:39.6]} 24... cxb5
{[%clk 0:02:02.1]} 25. Ra5 {[%clk 0:01:38.4]} 25... Rc5+ {[%clk 0:02:00]} 26.
Kd2 {[%clk 0:01:31.9]} 26... Rxc7 {[%clk 0:01:58.4]} 27. Rxb5 {[%clk 0:01:32.8]}
27... Kf6 {[%clk 0:01:52.6]} 28. a4 {[%clk 0:01:30.2]} 28... e5 {[%clk
0:01:52.3]} 29. b4 {[%clk 0:01:28.1]} 29... e6 {[%clk 0:01:51.7]} 30. Rb6 {[%clk
0:01:15.2]} 30... Rc2+ {[%clk 0:01:41.7]} 31. Ke3 {[%clk 0:01:14.3]} 31... Rb2
{[%clk 0:01:38.6]} 32. Bc4 {[%clk 0:01:02.6]} 32... Rxb4 {[%clk 0:01:30.3]} 33.
Rxe6+ {[%clk 0:01:02.5]} 33... Kf5 {[%clk 0:01:25.5]} 34. Rc6 {[%clk 0:01:00.6]}
34... Kg5 {[%clk 0:01:05]} 35. a5 {[%clk 0:00:55]} 35... Ra4 {[%clk 0:01:05.8]}
36. a6 {[%clk 0:00:55.8]} 36... Ra5 {[%clk 0:01:07.2]} 37. Rc7 {[%clk
0:00:42.8]} 37... Bc5+ {[%clk 0:01:05.2]} 38. Kd2 {[%clk 0:00:43.2]} 38... Kf6
{[%clk 0:01:00.9]} 39. Kc3 {[%clk 0:00:32.1]} 39... Be8 {[%clk 0:00:52.6]} 40.
Rc8 {[%clk 0:00:19]} 40... Bd7 {[%clk 0:00:49.5]} 41. Rc7 {[%clk 0:00:16.1]}
41... Ke7 {[%clk 0:00:39.3]} 42. Rb7 {[%clk 0:00:13.2]} 42... Kd6 {[%clk
0:00:37.9]} 43. Rb8 {[%clk 0:00:10.5]} 43... Ra3+ {[%clk 0:00:32.3]} 44. Kb2
{[%clk 0:00:09.6]} 44... Ra4 {[%clk 0:00:32.8]} 45. Bb3 {[%clk 0:00:08.2]} 45...
Rxa6 {[%clk 0:00:32.2]} 46. Rg8 {[%clk 0:00:07.9]} 46... e4 {[%clk 0:00:31]} 47.
fxe4 {[%clk 0:00:07.5]} 47... Bd4+ {[%clk 0:00:31.1]} 48. Kc2 {[%clk 0:00:08.9]}
48... Bf6 {[%clk 0:00:31.6]} 49. Rb8 {[%clk 0:00:05.5]} 49... Ke5 {[%clk
0:00:29.4]} 50. Rb5+ {[%clk 0:00:05.8]} 50... Bxb5 {[%clk 0:00:29.2]} 0-1

[Event "*** Titled Tuesday Blitz"]
[Site "Chess.com"]
[Date "2018.05.01"]
[Round "6"]
[White "krzyzan94"]
[Black "ilmago"]
[Result "0-1"]
[WhiteElo "2589"]
[BlackElo "1944"]
[TimeControl "180+2"]
[EndTime "14:22:39 PDT"]
[Termination "ilmago won by resignation"]

1. e4 {[%clk 0:02:57.2]} 1... c5 {[%clk 0:03:00.1]} 2. Nf3 {[%clk 0:02:57.5]}
2... d6 {[%clk 0:03:01.6]} 3. d4 {[%clk 0:02:58.1]} 3... cxd4 {[%clk 0:03:03.4]}
4. Nxd4 {[%clk 0:02:59.1]} 4... Nf6 {[%clk 0:03:04.5]} 5. Nc3 {[%clk 0:03:00.5]}
5... e6 {[%clk 0:03:05.9]} 6. g4 {[%clk 0:03:00.9]} 6... h6 {[%clk 0:03:05.3]}
7. h4 {[%clk 0:02:59.7]} 7... Nc6 {[%clk 0:03:05.2]} 8. g5 {[%clk 0:02:59.2]}
8... hxg5 {[%clk 0:03:04.8]} 9. Bxg5 {[%clk 0:03:01.1]} 9... Be7 {[%clk
0:02:50]} 10. Qd2 {[%clk 0:02:58]} 10... d5 {[%clk 0:02:36.2]} 11. exd5 {[%clk
0:02:29.3]} 11... Nxd5 {[%clk 0:02:35.2]} 12. Bxe7 {[%clk 0:02:11.2]} 12...
Ndxe7 {[%clk 0:02:25.3]} 13. Bb5 {[%clk 0:01:39.9]} 13... Bd7 {[%clk 0:02:14.6]}
14. O-O-O {[%clk 0:01:29.2]} 14... a6 {[%clk 0:01:59.9]} 15. Bc4 {[%clk
0:01:19.7]} 15... Nxd4 {[%clk 0:01:56.2]} 16. Qxd4 {[%clk 0:01:21.6]} 16... Nf5
{[%clk 0:01:55]} 17. Qe5 {[%clk 0:01:15.8]} 17... Rxh4 {[%clk 0:01:34.8]} 18.
Ne4 {[%clk 0:01:09.5]} 18... Rc8 {[%clk 0:01:18.6]} 19. Bb3 {[%clk 0:00:51.7]}
19... Qe7 {[%clk 0:01:05.8]} 20. Ng3 {[%clk 0:00:30.8]} 20... Rc5 {[%clk
0:00:30.3]} 21. Rxh4 {[%clk 0:00:16.4]} 21... Qg5+ {[%clk 0:00:16.2]} 22. f4
{[%clk 0:00:06.8]} 22... Rxe5 {[%clk 0:00:11.8]} 23. Rh8+ {[%clk 0:00:07.8]}
23... Ke7 {[%clk 0:00:11.9]} 24. fxg5 {[%clk 0:00:09.7]} 24... Nxg3 {[%clk
0:00:12.7]} 25. Rg8 {[%clk 0:00:08.7]} 25... g6 {[%clk 0:00:12.9]} 26. Rb8
{[%clk 0:00:06.8]} 26... Bc6 {[%clk 0:00:13]} 27. Rc8 {[%clk 0:00:05.9]} 27...
Rxg5 {[%clk 0:00:13.5]} 28. Rc7+ {[%clk 0:00:07.4]} 28... Kf6 {[%clk 0:00:12.9]}
29. a4 {[%clk 0:00:08.4]} 29... Ne2+ {[%clk 0:00:11.6]} 30. Kb1 {[%clk
0:00:09.1]} 30... Re5 {[%clk 0:00:08.9]} 31. Bc4 {[%clk 0:00:09.9]} 31... Nf4
{[%clk 0:00:07.7]} 32. Bxa6 {[%clk 0:00:10.3]} 32... Nd5 {[%clk 0:00:08.4]} 33.
Rf1+ {[%clk 0:00:06.8]} 33... Rf5 {[%clk 0:00:07.1]} 34. Rxf5+ {[%clk
0:00:06.9]} 34... gxf5 {[%clk 0:00:07.3]} 35. Rc8 {[%clk 0:00:07]} 35... Ne7
{[%clk 0:00:06.7]} 36. Ra8 {[%clk 0:00:07.3]} 36... bxa6 {[%clk 0:00:07.6]} 37.
Rxa6 {[%clk 0:00:08.4]} 37... f4 {[%clk 0:00:08.6]} 38. b4 {[%clk 0:00:05.7]}
38... f3 {[%clk 0:00:09.4]} 39. b5 {[%clk 0:00:06.6]} 39... Bb7 {[%clk
0:00:10.1]} 40. Ra7 {[%clk 0:00:07.4]} 40... f2 {[%clk 0:00:11.3]} 41. Rxb7
{[%clk 0:00:08.6]} 41... f1=Q+ {[%clk 0:00:12]} 42. Kb2 {[%clk 0:00:10.1]} 42...
Qf3 {[%clk 0:00:12.3]} 43. Rc7 {[%clk 0:00:10]} 43... Nd5 {[%clk 0:00:11.6]} 44.
Rc4 {[%clk 0:00:09.4]} 44... Ne3 {[%clk 0:00:10.7]} 45. Rc6 {[%clk 0:00:06.3]}
45... Nd1+ {[%clk 0:00:10.7]} 46. Kc1 {[%clk 0:00:06]} 46... Nc3 {[%clk
0:00:08.9]} 47. Ra6 {[%clk 0:00:03]} 47... Qe3+ {[%clk 0:00:08.8]} 48. Kb2
{[%clk 0:00:04]} 48... Qd4 {[%clk 0:00:10.1]} 49. Kb3 {[%clk 0:00:04.9]} 49...
Nd5 {[%clk 0:00:11.1]} 50. Rc6 {[%clk 0:00:06.2]} 50... Qb4+ {[%clk 0:00:11.4]}
51. Ka2 {[%clk 0:00:07.4]} 51... Qxa4+ {[%clk 0:00:13.3]} 0-1

[Event "*** Titled Tuesday Blitz"]
[Site "Chess.com"]
[Date "2018.05.01"]
[Round "6"]
[White "Zaven_ChessMood"]
[Black "JSPrepz"]
[Result "1-0"]
[WhiteElo "2868"]
[BlackElo "2637"]
[TimeControl "180+2"]
[EndTime "14:23:06 PDT"]
[Termination "Zaven_ChessMood won by resignation"]

1. e4 {[%clk 0:03:01.9]} 1... e5 {[%clk 0:03:00.7]} 2. Nf3 {[%clk 0:03:02.9]}
2... Nc6 {[%clk 0:03:02.3]} 3. Bc4 {[%clk 0:03:03.9]} 3... Nf6 {[%clk
0:03:03.2]} 4. d3 {[%clk 0:03:04.9]} 4... Be7 {[%clk 0:03:00.4]} 5. O-O {[%clk
0:03:04.9]} 5... O-O {[%clk 0:03:01.5]} 6. Nc3 {[%clk 0:03:06.4]} 6... d6 {[%clk
0:03:02.6]} 7. a4 {[%clk 0:03:04]} 7... Kh8 {[%clk 0:03:03.2]} 8. h3 {[%clk
0:03:01.4]} 8... Ng8 {[%clk 0:03:03.8]} 9. Nd5 {[%clk 0:03:02]} 9... f5 {[%clk
0:03:04.3]} 10. c3 {[%clk 0:02:51.3]} 10... Nf6 {[%clk 0:02:36.2]} 11. Nxe7
{[%clk 0:01:55.6]} 11... Qxe7 {[%clk 0:02:35.5]} 12. exf5 {[%clk 0:01:54]} 12...
Bxf5 {[%clk 0:02:23.6]} 13. Re1 {[%clk 0:01:54.9]} 13... Rae8 {[%clk 0:02:17.6]}
14. Bg5 {[%clk 0:01:50.8]} 14... Qd7 {[%clk 0:02:15.3]} 15. Bxf6 {[%clk
0:01:29.5]} 15... Rxf6 {[%clk 0:02:07.6]} 16. Bd5 {[%clk 0:01:29.6]} 16... Ref8
{[%clk 0:01:55.7]} 17. Re3 {[%clk 0:01:23.8]} 17... Ne7 {[%clk 0:01:52.1]} 18.
Be4 {[%clk 0:01:23.4]} 18... Ng6 {[%clk 0:01:43.5]} 19. d4 {[%clk 0:01:18.9]}
19... Bxe4 {[%clk 0:01:14.6]} 20. Rxe4 {[%clk 0:01:19.5]} 20... exd4 {[%clk
0:01:13.3]} 21. Qxd4 {[%clk 0:01:19.5]} 21... Nf4 {[%clk 0:01:14.4]} 22. Ne1
{[%clk 0:01:12.3]} 22... Qf5 {[%clk 0:01:03.7]} 23. Qe3 {[%clk 0:00:46.1]} 23...
Nd5 {[%clk 0:00:57.8]} 24. Qe2 {[%clk 0:00:45.1]} 24... Qxf2+ {[%clk 0:00:53.3]}
25. Qxf2 {[%clk 0:00:46.2]} 25... Rxf2 {[%clk 0:00:55.2]} 26. Rd1 {[%clk
0:00:45.6]} 26... Nf6 {[%clk 0:00:39]} 27. Re7 {[%clk 0:00:45.7]} 27... Rxb2
{[%clk 0:00:39.8]} 28. Rxc7 {[%clk 0:00:46]} 28... Ne4 {[%clk 0:00:40.2]} 29.
Nf3 {[%clk 0:00:47]} 29... h6 {[%clk 0:00:29.7]} 30. Re1 {[%clk 0:00:47.8]}
30... d5 {[%clk 0:00:30.5]} 31. c4 {[%clk 0:00:48.8]} 31... Rc2 {[%clk
0:00:27.9]} 32. Rxb7 {[%clk 0:00:48.2]} 32... Nc5 {[%clk 0:00:17.9]} 33. Rxa7
{[%clk 0:00:45.3]} 33... dxc4 {[%clk 0:00:18.8]} 34. a5 {[%clk 0:00:42]} 34...
Nd3 {[%clk 0:00:19.5]} 35. Ree7 {[%clk 0:00:42.7]} 35... Rg8 {[%clk 0:00:14.8]}
36. a6 {[%clk 0:00:41.3]} 36... Nf4 {[%clk 0:00:16]} 37. Nh4 {[%clk 0:00:41]}
37... Ra2 {[%clk 0:00:14.3]} 38. Re4 {[%clk 0:00:41]} 38... c3 {[%clk
0:00:13.2]} 39. Rxf4 {[%clk 0:00:39.3]} 39... c2 {[%clk 0:00:14.7]} 40. Rf1
{[%clk 0:00:40.1]} 40... Rb8 {[%clk 0:00:14.6]} 41. Rb7 {[%clk 0:00:25.4]} 41...
Rd8 {[%clk 0:00:15]} 42. a7 {[%clk 0:00:24.1]} 42... Rd1 {[%clk 0:00:12.4]} 43.
Rc7 {[%clk 0:00:19.1]} 43... Raa1 {[%clk 0:00:02.8]} 44. a8=Q+ {[%clk
0:00:19.4]} 44... Rxa8 {[%clk 0:00:04.7]} 45. Rxc2 {[%clk 0:00:20.3]} 45... Rd4
{[%clk 0:00:05.4]} 46. Nf3 {[%clk 0:00:20.5]} 46... Rf4 {[%clk 0:00:06.3]} 47.
Rcf2 {[%clk 0:00:22.1]} 47... Kh7 {[%clk 0:00:05.9]} 48. Ne5 {[%clk 0:00:22.7]}
48... Re4 {[%clk 0:00:07.3]} 49. Ng4 {[%clk 0:00:23.7]} 49... Rd4 {[%clk
0:00:06.4]} 50. Rf7 {[%clk 0:00:24.1]} 50... Ra2 {[%clk 0:00:06.4]} 51. R1f2
{[%clk 0:00:24.4]} 51... Rd1+ {[%clk 0:00:07.2]} 52. Kh2 {[%clk 0:00:25.4]}
52... Raa1 {[%clk 0:00:08.4]} 53. Re7 {[%clk 0:00:24.6]} 53... h5 {[%clk
0:00:09.4]} 54. Ne3 {[%clk 0:00:22.3]} 54... Re1 {[%clk 0:00:09.7]} 55. Nf5
{[%clk 0:00:19.8]} 55... Rh1+ {[%clk 0:00:05.6]} 56. Kg3 {[%clk 0:00:20.2]}
56... h4+ {[%clk 0:00:03.1]} 57. Kxh4 {[%clk 0:00:20.6]} 57... Kg6 {[%clk
0:00:04.6]} 58. Rxg7+ {[%clk 0:00:20.4]} 58... Kf6 {[%clk 0:00:06.1]} 59. Rg4
{[%clk 0:00:21.4]} 59... Ra8 {[%clk 0:00:06.2]} 60. Ng3+ {[%clk 0:00:22.2]} 1-0

[Event "*** Titled Tuesday Blitz"]
[Site "Chess.com"]
[Date "2018.05.01"]
[Round "6"]
[White "daro94"]
[Black "gmjlh"]
[Result "1-0"]
[WhiteElo "2732"]
[BlackElo "2614"]
[TimeControl "180+2"]
[EndTime "14:23:12 PDT"]
[Termination "daro94 won on time"]

1. e4 {[%clk 0:03:01.9]} 1... c6 {[%clk 0:02:58.1]} 2. d4 {[%clk 0:03:01]} 2...
d5 {[%clk 0:02:59]} 3. exd5 {[%clk 0:03:02.5]} 3... cxd5 {[%clk 0:03:00]} 4. Bd3
{[%clk 0:03:04.1]} 4... Nf6 {[%clk 0:02:58.9]} 5. c3 {[%clk 0:03:05.3]} 5... Nc6
{[%clk 0:02:59.4]} 6. Bf4 {[%clk 0:03:05.4]} 6... Bg4 {[%clk 0:02:57]} 7. Qb3
{[%clk 0:03:06.2]} 7... Qd7 {[%clk 0:02:58.1]} 8. Nd2 {[%clk 0:03:06.3]} 8... e6
{[%clk 0:02:58.6]} 9. Ngf3 {[%clk 0:03:07.1]} 9... Bd6 {[%clk 0:02:53.7]} 10.
Be5 {[%clk 0:03:08]} 10... O-O {[%clk 0:02:51.2]} 11. O-O {[%clk 0:03:01.5]}
11... Rab8 {[%clk 0:02:42.2]} 12. Rae1 {[%clk 0:02:50.9]} 12... Bxf3 {[%clk
0:02:37]} 13. Nxf3 {[%clk 0:02:51.2]} 13... Ne8 {[%clk 0:02:37.7]} 14. Qc2
{[%clk 0:02:35.7]} 14... g6 {[%clk 0:02:37.8]} 15. h4 {[%clk 0:02:24.8]} 15...
b5 {[%clk 0:02:36.4]} 16. h5 {[%clk 0:02:20.7]} 16... Bxe5 {[%clk 0:02:16.1]}
17. Nxe5 {[%clk 0:02:12.2]} 17... Nxe5 {[%clk 0:02:16.7]} 18. Rxe5 {[%clk
0:02:12.9]} 18... b4 {[%clk 0:02:16.2]} 19. Rfe1 {[%clk 0:02:06.2]} 19... bxc3
{[%clk 0:02:15.2]} 20. bxc3 {[%clk 0:02:04.4]} 20... Nf6 {[%clk 0:02:07.9]} 21.
Qd2 {[%clk 0:01:54.1]} 21... Qd8 {[%clk 0:01:46.6]} 22. hxg6 {[%clk 0:01:01.1]}
22... hxg6 {[%clk 0:01:47.5]} 23. Qf4 {[%clk 0:01:02.4]} 23... Kg7 {[%clk
0:01:45.3]} 24. Qg3 {[%clk 0:00:57.6]} 24... Rh8 {[%clk 0:01:42.4]} 25. f4
{[%clk 0:00:30.4]} 25... Rh6 {[%clk 0:01:38.4]} 26. f5 {[%clk 0:00:24.8]} 26...
exf5 {[%clk 0:01:33.6]} 27. Rxf5 {[%clk 0:00:23.7]} 27... Rb2 {[%clk 0:01:20.8]}
28. Rf2 {[%clk 0:00:12.7]} 28... Rxf2 {[%clk 0:01:11.8]} 29. Kxf2 {[%clk
0:00:14.6]} 29... Qa5 {[%clk 0:01:08.9]} 30. Bb1 {[%clk 0:00:06.5]} 30... Qa3
{[%clk 0:00:58.1]} 31. Qd3 {[%clk 0:00:04.3]} 31... Ng4+ {[%clk 0:00:52.6]} 32.
Kg3 {[%clk 0:00:04.1]} 32... Nf6 {[%clk 0:00:32.1]} 33. Qd2 {[%clk 0:00:03.2]}
33... Qd6+ {[%clk 0:00:26.4]} 34. Kf3 {[%clk 0:00:04.2]} 34... Rh2 {[%clk
0:00:20]} 35. Re5 {[%clk 0:00:03.9]} 35... Nh5 {[%clk 0:00:15.6]} 36. Qg5 {[%clk
0:00:03.4]} 36... Rh1 {[%clk 0:00:15]} 37. Bd3 {[%clk 0:00:03.4]} 37... Qc6
{[%clk 0:00:11.3]} 38. Re7 {[%clk 0:00:03.1]} 38... Qd6 {[%clk 0:00:05.7]} 39.
Qe5+ {[%clk 0:00:03.9]} 39... Qxe5 {[%clk 0:00:06.6]} 40. dxe5 {[%clk
0:00:05.8]} 40... Kf8 {[%clk 0:00:06]} 41. Rxa7 {[%clk 0:00:06.5]} 41... Rc1
{[%clk 0:00:07.9]} 42. Ke3 {[%clk 0:00:07.5]} 42... Rxc3 {[%clk 0:00:08.5]} 43.
Kd4 {[%clk 0:00:09]} 43... Rc1 {[%clk 0:00:09.4]} 44. e6 {[%clk 0:00:09.2]}
44... fxe6 {[%clk 0:00:09.4]} 45. Bxg6 {[%clk 0:00:10.6]} 45... Ng3 {[%clk
0:00:10.3]} 46. a4 {[%clk 0:00:10.5]} 46... Re1 {[%clk 0:00:04.7]} 47. a5 {[%clk
0:00:10.9]} 47... Ne2+ {[%clk 0:00:03.5]} 48. Ke5 {[%clk 0:00:10.9]} 48... d4
{[%clk 0:00:04.1]} 49. Kf6 {[%clk 0:00:10.1]} 49... Rf1+ {[%clk 0:00:04.8]} 50.
Ke5 {[%clk 0:00:07.5]} 50... Re1 {[%clk 0:00:05]} 51. Kf6 {[%clk 0:00:06]} 51...
Rf1+ {[%clk 0:00:05.3]} 52. Kg5 {[%clk 0:00:07]} 52... e5 {[%clk 0:00:03]} 53.
a6 {[%clk 0:00:06.4]} 53... Nf4 {[%clk 0:00:04.4]} 54. Be4 {[%clk 0:00:05.1]}
54... d3 {[%clk 0:00:04.7]} 55. Rd7 {[%clk 0:00:05.2]} 55... Ra1 {[%clk
0:00:05.6]} 56. a7 {[%clk 0:00:05.3]} 56... d2 {[%clk 0:00:07.1]} 57. a8=Q+
{[%clk 0:00:03.8]} 57... Rxa8 {[%clk 0:00:07.7]} 58. Bxa8 {[%clk 0:00:05.7]}
58... Ne6+ {[%clk 0:00:08.7]} 59. Kf6 {[%clk 0:00:05.1]} 1-0